[Event "*** Titled Tuesday Blitz"]
[Site "Chess.com"]
[Date "2019.06.04"]
[Round "3"]
[White "HanSchut"]
[Black "nitpicker"]
[Result "0-1"]
[WhiteElo "2184"]
[BlackElo "2225"]
[TimeControl "180+2"]
[EndTime "13:30:59 PDT"]
[Termination "nitpicker won by resignation"]

1. e4 {[%clk 0:03:01.9]} 1... d5 {[%clk 0:02:59.9]} 2. exd5 {[%clk 0:03:02.6]}
2... Qxd5 {[%clk 0:03:00.9]} 3. Nc3 {[%clk 0:03:04]} 3... Qd8 {[%clk 0:03:02]}
4. d4 {[%clk 0:03:04.8]} 4... Nf6 {[%clk 0:03:02.8]} 5. Bg5 {[%clk 0:02:58.1]}
5... Bf5 {[%clk 0:02:58.8]} 6. Bc4 {[%clk 0:02:55.1]} 6... c6 {[%clk 0:02:53.1]}
7. Nf3 {[%clk 0:02:55.3]} 7... e6 {[%clk 0:02:52.9]} 8. Qe2 {[%clk 0:02:52.8]}
8... h6 {[%clk 0:02:52.2]} 9. Bh4 {[%clk 0:02:52.9]} 9... Be7 {[%clk 0:02:51.9]}
10. O-O-O {[%clk 0:02:52.3]} 10... Nbd7 {[%clk 0:02:48.5]} 11. Ne5 {[%clk
0:02:45.9]} 11... Nb6 {[%clk 0:02:44.4]} 12. Bd3 {[%clk 0:02:34.6]} 12... Qxd4
{[%clk 0:02:28.2]} 13. f4 {[%clk 0:01:58.4]} 13... Qxf4+ {[%clk 0:02:27.4]} 0-1

[Event "*** Titled Tuesday Blitz"]
[Site "Chess.com"]
[Date "2019.06.04"]
[Round "3"]
[White "irregularity"]
[Black "Cryptochess"]
[Result "0-1"]
[WhiteElo "2600"]
[BlackElo "2656"]
[TimeControl "180+2"]
[EndTime "13:31:30 PDT"]
[Termination "Cryptochess won by resignation"]

1. e4 {[%clk 0:03:01.9]} 1... e5 {[%clk 0:03:00.2]} 2. Nf3 {[%clk 0:03:03.1]}
2... Nf6 {[%clk 0:03:01.5]} 3. Nc3 {[%clk 0:03:04.4]} 3... Nc6 {[%clk
0:03:02.4]} 4. Bc4 {[%clk 0:03:05.6]} 4... Bb4 {[%clk 0:03:02.6]} 5. d3 {[%clk
0:03:06.5]} 5... O-O {[%clk 0:03:03.7]} 6. O-O {[%clk 0:03:07.5]} 6... d6 {[%clk
0:03:02.1]} 7. h3 {[%clk 0:03:08.8]} 7... Be6 {[%clk 0:03:00.3]} 8. Bb3 {[%clk
0:03:01.2]} 8... Qd7 {[%clk 0:03:00.5]} 9. Bg5 {[%clk 0:02:59.7]} 9... Kh8
{[%clk 0:02:49.1]} 10. Bxf6 {[%clk 0:02:44.5]} 10... gxf6 {[%clk 0:02:51]} 11.
Nh4 {[%clk 0:02:38.4]} 11... Rg8 {[%clk 0:02:51.6]} 12. Kh2 {[%clk 0:02:39.4]}
12... Ne7 {[%clk 0:02:42.4]} 13. Qh5 {[%clk 0:02:36.7]} 13... Rg5 {[%clk
0:02:41.7]} 14. Qf3 {[%clk 0:02:34.3]} 14... f5 {[%clk 0:02:35.5]} 15. exf5
{[%clk 0:02:24.9]} 15... Nxf5 {[%clk 0:02:33.2]} 16. Nxf5 {[%clk 0:02:19.4]}
16... Bxf5 {[%clk 0:02:31.6]} 17. Qxb7 {[%clk 0:01:55]} 17... Rag8 {[%clk
0:02:30.2]} 18. Qxb4 {[%clk 0:01:56.1]} 18... Rxg2+ {[%clk 0:02:30.2]} 19. Kh1
{[%clk 0:01:57.4]} 19... Be4 {[%clk 0:02:20.5]} 0-1

[Event "*** Titled Tuesday Blitz"]
[Site "Chess.com"]
[Date "2019.06.04"]
[Round "3"]
[White "MFBerna"]
[Black "Naruto-K"]
[Result "1-0"]
[WhiteElo "2379"]
[BlackElo "2387"]
[TimeControl "180+2"]
[EndTime "13:32:18 PDT"]
[Termination "MFBerna won by resignation"]

1. e4 {[%clk 0:03:01.9]} 1... e6 {[%clk 0:02:58.5]} 2. d4 {[%clk 0:03:02.6]}
2... d5 {[%clk 0:02:59]} 3. Nd2 {[%clk 0:03:02.2]} 3... Be7 {[%clk 0:02:59.2]}
4. Ngf3 {[%clk 0:03:02.8]} 4... Nf6 {[%clk 0:02:58.7]} 5. Bd3 {[%clk 0:03:03.8]}
5... c5 {[%clk 0:02:58.2]} 6. exd5 {[%clk 0:03:04.7]} 6... exd5 {[%clk
0:02:58.8]} 7. dxc5 {[%clk 0:03:04.8]} 7... Bxc5 {[%clk 0:02:57.7]} 8. Qe2+
{[%clk 0:03:05.7]} 8... Be6 {[%clk 0:02:51.1]} 9. Nb3 {[%clk 0:03:01.8]} 9...
Bb6 {[%clk 0:02:51]} 10. Nbd4 {[%clk 0:03:01.2]} 10... O-O {[%clk 0:02:51.4]}
11. Nxe6 {[%clk 0:02:56.2]} 11... fxe6 {[%clk 0:02:53.3]} 12. Qxe6+ {[%clk
0:02:57.6]} 12... Kh8 {[%clk 0:02:54.8]} 13. O-O {[%clk 0:02:58.8]} 13... Nc6
{[%clk 0:02:18.7]} 14. Bg5 {[%clk 0:02:58.9]} 14... Qc7 {[%clk 0:01:46.7]} 15.
Qh3 {[%clk 0:02:55.4]} 15... Ne4 {[%clk 0:01:46.6]} 16. Be3 {[%clk 0:02:28.7]}
16... Nb4 {[%clk 0:01:16.6]} 17. Bxe4 {[%clk 0:02:21.7]} 17... dxe4 {[%clk
0:01:13.4]} 18. Ng5 {[%clk 0:02:22.9]} 1-0

[Event "*** Titled Tuesday Blitz"]
[Site "Chess.com"]
[Date "2019.06.04"]
[Round "3"]
[White "lexiel"]
[Black "MathiasWomacka"]
[Result "0-1"]
[WhiteElo "2218"]
[BlackElo "2309"]
[TimeControl "180+2"]
[EndTime "13:33:32 PDT"]
[Termination "MathiasWomacka won by resignation"]

1. d4 {[%clk 0:03:01.9]} 1... Nf6 {[%clk 0:03:00.1]} 2. Nf3 {[%clk 0:03:02.6]}
2... e6 {[%clk 0:03:00.8]} 3. g3 {[%clk 0:03:02.1]} 3... c5 {[%clk 0:03:00.9]}
4. c3 {[%clk 0:03:01.9]} 4... d5 {[%clk 0:02:55.5]} 5. Bg2 {[%clk 0:03:02.9]}
5... Be7 {[%clk 0:02:52.7]} 6. O-O {[%clk 0:03:03.3]} 6... O-O {[%clk
0:02:53.3]} 7. Na3 {[%clk 0:03:02.7]} 7... Nc6 {[%clk 0:02:49.6]} 8. dxc5 {[%clk
0:03:03.3]} 8... Bxc5 {[%clk 0:02:49.8]} 9. b4 {[%clk 0:03:04.4]} 9... Be7
{[%clk 0:02:47]} 10. Bb2 {[%clk 0:03:05.5]} 10... Ne4 {[%clk 0:02:40.9]} 11. Nc2
{[%clk 0:03:02.7]} 11... Bf6 {[%clk 0:02:41.8]} 12. Nfd4 {[%clk 0:03:03.4]}
12... Ne5 {[%clk 0:02:37.7]} 13. Ne3 {[%clk 0:03:02.6]} 13... Nd6 {[%clk
0:02:28.4]} 14. a4 {[%clk 0:02:50.7]} 14... Nec4 {[%clk 0:02:28.1]} 15. Nxc4
{[%clk 0:02:51.6]} 15... Nxc4 {[%clk 0:02:29.1]} 16. Qb3 {[%clk 0:02:48.8]}
16... Nd2 {[%clk 0:02:26.9]} 17. Qa2 {[%clk 0:02:47.5]} 17... Nxf1 {[%clk
0:02:27.1]} 18. Rxf1 {[%clk 0:02:49.4]} 18... Bxd4 {[%clk 0:02:22.8]} 19. cxd4
{[%clk 0:02:49.6]} 19... Bd7 {[%clk 0:02:24.3]} 20. e4 {[%clk 0:02:48.9]} 20...
dxe4 {[%clk 0:02:21.2]} 21. Bxe4 {[%clk 0:02:49]} 21... Bc6 {[%clk 0:02:22.7]}
22. Bxc6 {[%clk 0:02:45.7]} 22... bxc6 {[%clk 0:02:24.6]} 23. Rc1 {[%clk
0:02:47.1]} 23... Qd5 {[%clk 0:02:24.6]} 24. Qb1 {[%clk 0:02:46.9]} 24... Rab8
{[%clk 0:02:20]} 25. Bc3 {[%clk 0:02:45.6]} 25... a5 {[%clk 0:02:21]} 26. b5
{[%clk 0:02:35.5]} 26... cxb5 {[%clk 0:02:21.5]} 27. axb5 {[%clk 0:02:36]} 27...
Rxb5 {[%clk 0:02:21]} 28. Qa1 {[%clk 0:02:37.1]} 28... Rc8 {[%clk 0:02:14.5]}
29. Re1 {[%clk 0:02:30.2]} 29... Qf3 {[%clk 0:01:59.3]} 30. Bd2 {[%clk
0:02:25.3]} 30... h6 {[%clk 0:01:56]} 31. Be3 {[%clk 0:02:25.7]} 31... Rc2
{[%clk 0:01:46.8]} 32. Rb1 {[%clk 0:02:21.4]} 32... Rxb1+ {[%clk 0:01:37.4]} 33.
Qxb1 {[%clk 0:02:22.2]} 33... Qc6 {[%clk 0:01:36.2]} 34. Qb8+ {[%clk 0:02:12.6]}
34... Kh7 {[%clk 0:01:36.5]} 35. Qa7 {[%clk 0:02:13.2]} 35... Ra2 {[%clk
0:01:33.3]} 0-1

[Event "*** Titled Tuesday Blitz"]
[Site "Chess.com"]
[Date "2019.06.04"]
[Round "3"]
[White "Shant_Sargsyan"]
[Black "Andrjywa"]
[Result "1-0"]
[WhiteElo "3031"]
[BlackElo "2508"]
[TimeControl "180+2"]
[EndTime "13:33:39 PDT"]
[Termination "Shant_Sargsyan won by resignation"]

1. e4 {[%clk 0:03:01.8]} 1... c5 {[%clk 0:03:00.4]} 2. Nf3 {[%clk 0:03:03.2]}
2... Nc6 {[%clk 0:03:01.3]} 3. Bb5 {[%clk 0:03:04.2]} 3... e6 {[%clk 0:03:02.1]}
4. O-O {[%clk 0:03:05.6]} 4... Nge7 {[%clk 0:03:02.2]} 5. Re1 {[%clk 0:03:07.2]}
5... a6 {[%clk 0:03:03.4]} 6. Bf1 {[%clk 0:03:08.5]} 6... Ng6 {[%clk 0:03:00.7]}
7. c3 {[%clk 0:03:08.6]} 7... Be7 {[%clk 0:02:59.7]} 8. d4 {[%clk 0:03:10.1]}
8... cxd4 {[%clk 0:03:00.1]} 9. cxd4 {[%clk 0:03:11.6]} 9... d5 {[%clk
0:03:00.4]} 10. e5 {[%clk 0:03:13]} 10... O-O {[%clk 0:02:59.5]} 11. Nc3 {[%clk
0:03:14.1]} 11... f6 {[%clk 0:02:58.4]} 12. exf6 {[%clk 0:03:13.5]} 12... Bxf6
{[%clk 0:03:00.3]} 13. Be3 {[%clk 0:03:14.3]} 13... Bd7 {[%clk 0:02:45.9]} 14.
Bd3 {[%clk 0:03:15.5]} 14... Nge7 {[%clk 0:02:36.2]} 15. Qd2 {[%clk 0:03:13.9]}
15... g6 {[%clk 0:02:23.2]} 16. Bg5 {[%clk 0:03:14.7]} 16... Rc8 {[%clk
0:02:11.8]} 17. Qe3 {[%clk 0:03:09.1]} 17... Nb4 {[%clk 0:02:04.7]} 18. Bxf6
{[%clk 0:03:08.3]} 18... Rxf6 {[%clk 0:02:04.4]} 19. Ne5 {[%clk 0:03:10.2]}
19... Nf5 {[%clk 0:02:02.7]} 20. Bxf5 {[%clk 0:03:11.5]} 20... exf5 {[%clk
0:01:56.7]} 21. Qg5 {[%clk 0:03:12.1]} 21... Re6 {[%clk 0:01:53.5]} 22. Qd2
{[%clk 0:03:11.5]} 22... Be8 {[%clk 0:01:37.3]} 23. Nf3 {[%clk 0:03:11.8]} 23...
Rxe1+ {[%clk 0:01:06.1]} 24. Rxe1 {[%clk 0:03:13.7]} 24... Bf7 {[%clk
0:01:04.6]} 25. Ne5 {[%clk 0:03:14.5]} 25... Qc7 {[%clk 0:01:01.6]} 26. h4
{[%clk 0:03:13.3]} 26... Nc6 {[%clk 0:01:02.8]} 27. h5 {[%clk 0:03:13.6]} 27...
Nxe5 {[%clk 0:01:00.7]} 28. Rxe5 {[%clk 0:03:15.5]} 28... Qd6 {[%clk 0:00:54.7]}
29. h6 {[%clk 0:03:15.1]} 29... Re8 {[%clk 0:00:51.1]} 30. f4 {[%clk 0:03:11.7]}
30... Rxe5 {[%clk 0:00:47]} 31. fxe5 {[%clk 0:03:13.6]} 31... Qe6 {[%clk
0:00:48.5]} 32. Qg5 {[%clk 0:03:14.6]} 32... Be8 {[%clk 0:00:37.6]} 33. Qd8
{[%clk 0:03:15.4]} 33... Qd7 {[%clk 0:00:28]} 34. Qf6 {[%clk 0:03:16.4]} 34...
Qf7 {[%clk 0:00:27.6]} 35. Nxd5 {[%clk 0:03:17]} 1-0

[Event "*** Titled Tuesday Blitz"]
[Site "Chess.com"]
[Date "2019.06.04"]
[Round "3"]
[White "GHANDEEVAM2003"]
[Black "LastHeroJr"]
[Result "1-0"]
[WhiteElo "2930"]
[BlackElo "2504"]
[TimeControl "180+2"]
[EndTime "13:33:39 PDT"]
[Termination "GHANDEEVAM2003 won by resignation"]

1. c4 {[%clk 0:03:01.9]} 1... e5 {[%clk 0:02:58.6]} 2. Nc3 {[%clk 0:03:00.6]}
2... Nf6 {[%clk 0:02:59.7]} 3. Nf3 {[%clk 0:03:00.7]} 3... Nc6 {[%clk
0:03:00.6]} 4. e3 {[%clk 0:03:02]} 4... Bb4 {[%clk 0:03:01.7]} 5. Nd5 {[%clk
0:03:02.2]} 5... Be7 {[%clk 0:02:57.1]} 6. d4 {[%clk 0:02:56.6]} 6... exd4
{[%clk 0:02:53.7]} 7. Nxe7 {[%clk 0:02:51.4]} 7... Qxe7 {[%clk 0:02:50.3]} 8.
Nxd4 {[%clk 0:02:52.7]} 8... O-O {[%clk 0:02:21.5]} 9. Be2 {[%clk 0:02:53]} 9...
d6 {[%clk 0:02:14.6]} 10. O-O {[%clk 0:02:53]} 10... Ne4 {[%clk 0:02:11.1]} 11.
f3 {[%clk 0:02:38.9]} 11... Nc5 {[%clk 0:02:07]} 12. e4 {[%clk 0:02:39.4]} 12...
Nxd4 {[%clk 0:01:54]} 13. Qxd4 {[%clk 0:02:41.3]} 13... f5 {[%clk 0:01:55.1]}
14. b4 {[%clk 0:02:31.3]} 14... Ne6 {[%clk 0:01:54]} 15. Qd5 {[%clk 0:02:32.3]}
15... c6 {[%clk 0:01:51.1]} 16. Qd3 {[%clk 0:02:33.3]} 16... Qf6 {[%clk
0:01:38.3]} 17. Be3 {[%clk 0:02:28.9]} 17... fxe4 {[%clk 0:01:23.7]} 18. fxe4
{[%clk 0:02:22.7]} 18... Qe5 {[%clk 0:01:24.8]} 19. Rad1 {[%clk 0:02:23.2]}
19... Rd8 {[%clk 0:01:13.7]} 20. Rf5 {[%clk 0:01:50.7]} 20... Qb2 {[%clk
0:01:14.5]} 21. Rb1 {[%clk 0:01:52.1]} 21... Qxa2 {[%clk 0:01:14.4]} 22. Ra5
{[%clk 0:01:53.6]} 1-0

[Event "*** Titled Tuesday Blitz"]
[Site "Chess.com"]
[Date "2019.06.04"]
[Round "3"]
[White "Konavets"]
[Black "Yashasd1995"]
[Result "1-0"]
[WhiteElo "2924"]
[BlackElo "2505"]
[TimeControl "180+2"]
[EndTime "13:33:59 PDT"]
[Termination "Konavets won by resignation"]

1. c4 {[%clk 0:02:57.2]} 1... e5 {[%clk 0:02:59.3]} 2. g3 {[%clk 0:02:58.7]}
2... Nc6 {[%clk 0:02:59.7]} 3. Bg2 {[%clk 0:03:00.3]} 3... g6 {[%clk 0:03:00.8]}
4. Nc3 {[%clk 0:03:01.9]} 4... Bg7 {[%clk 0:03:02.1]} 5. e3 {[%clk 0:03:03.8]}
5... Nge7 {[%clk 0:03:02.5]} 6. Nge2 {[%clk 0:03:05.4]} 6... O-O {[%clk
0:03:02.5]} 7. O-O {[%clk 0:03:06.9]} 7... d6 {[%clk 0:03:03.8]} 8. d4 {[%clk
0:03:08.1]} 8... a5 {[%clk 0:02:44.2]} 9. b3 {[%clk 0:03:05.9]} 9... Bf5 {[%clk
0:02:14.4]} 10. Bb2 {[%clk 0:03:05.2]} 10... Qc8 {[%clk 0:02:11.5]} 11. Nd5
{[%clk 0:03:06.3]} 11... Bh3 {[%clk 0:02:05.9]} 12. Bxh3 {[%clk 0:03:05.4]}
12... Qxh3 {[%clk 0:02:04.5]} 13. Nxc7 {[%clk 0:03:06.8]} 13... Rad8 {[%clk
0:02:00.8]} 14. d5 {[%clk 0:03:05.4]} 14... Nb8 {[%clk 0:01:53.5]} 15. Nb5
{[%clk 0:03:04]} 15... Nd7 {[%clk 0:01:44.5]} 16. f3 {[%clk 0:03:03.1]} 16...
Nc5 {[%clk 0:01:40.4]} 17. a3 {[%clk 0:03:01.2]} 17... a4 {[%clk 0:01:36.1]} 18.
b4 {[%clk 0:03:01.2]} 18... Nb3 {[%clk 0:01:36.4]} 19. Rb1 {[%clk 0:03:02.6]}
19... Bh6 {[%clk 0:01:27.8]} 20. Qd3 {[%clk 0:03:02.2]} 20... Nf5 {[%clk
0:01:26.9]} 21. e4 {[%clk 0:03:02]} 21... Ne3 {[%clk 0:01:22.9]} 22. Rf2 {[%clk
0:03:03.1]} 22... f5 {[%clk 0:01:18.8]} 23. Bc3 {[%clk 0:02:34.5]} 23... fxe4
{[%clk 0:01:09.2]} 24. Qxe4 {[%clk 0:02:36.4]} 24... Nf5 {[%clk 0:00:59.9]} 25.
Kh1 {[%clk 0:02:32.7]} 25... Nbd4 {[%clk 0:00:24.5]} 26. Bxd4 {[%clk 0:02:26.6]}
26... exd4 {[%clk 0:00:26.4]} 27. Nbxd4 {[%clk 0:02:27]} 27... Rde8 {[%clk
0:00:25.4]} 28. Ne6 {[%clk 0:02:28.2]} 28... Ng7 {[%clk 0:00:20]} 29. N2d4
{[%clk 0:02:29.3]} 29... Nf5 {[%clk 0:00:19.8]} 30. Nxf5 {[%clk 0:02:29.9]}
30... Rxf5 {[%clk 0:00:19.2]} 31. Qh4 {[%clk 0:02:30.9]} 31... Qxh4 {[%clk
0:00:17.2]} 32. gxh4 {[%clk 0:02:32.8]} 32... Rf4 {[%clk 0:00:18.8]} 33. Nxf4
{[%clk 0:02:33.7]} 1-0

[Event "*** Titled Tuesday Blitz"]
[Site "Chess.com"]
[Date "2019.06.04"]
[Round "3"]
[White "BigAl"]
[Black "Manukyan_Artak"]
[Result "1/2-1/2"]
[WhiteElo "2366"]
[BlackElo "2402"]
[TimeControl "180+2"]
[EndTime "13:34:00 PDT"]
[Termination "Game drawn by repetition"]

1. e4 {[%clk 0:03:01.8]} 1... c6 {[%clk 0:03:00.2]} 2. d3 {[%clk 0:03:02.8]}
2... d5 {[%clk 0:03:02.1]} 3. Nd2 {[%clk 0:03:04.7]} 3... Nf6 {[%clk 0:03:02.4]}
4. Ngf3 {[%clk 0:03:06.3]} 4... Bg4 {[%clk 0:03:02.7]} 5. g3 {[%clk 0:03:08]}
5... dxe4 {[%clk 0:03:02.8]} 6. dxe4 {[%clk 0:03:08.8]} 6... Nxe4 {[%clk
0:02:59.1]} 7. Bg2 {[%clk 0:03:02.8]} 7... Nxd2 {[%clk 0:02:58.2]} 8. Bxd2
{[%clk 0:03:04.7]} 8... e6 {[%clk 0:02:54.6]} 9. Bc3 {[%clk 0:03:04.6]} 9...
Qxd1+ {[%clk 0:02:54.4]} 10. Rxd1 {[%clk 0:03:05.7]} 10... Nd7 {[%clk
0:02:56.3]} 11. O-O {[%clk 0:02:56.7]} 11... O-O-O {[%clk 0:02:50.5]} 12. Rd2
{[%clk 0:02:39.9]} 12... Bxf3 {[%clk 0:02:48.7]} 13. Bxf3 {[%clk 0:02:41.2]}
13... Nf6 {[%clk 0:02:50.6]} 14. Rxd8+ {[%clk 0:02:33.6]} 14... Kxd8 {[%clk
0:02:52.5]} 15. Bxf6+ {[%clk 0:02:35.4]} 15... gxf6 {[%clk 0:02:53.3]} 16. Rd1+
{[%clk 0:02:37.3]} 16... Kc7 {[%clk 0:02:54.6]} 17. Kf1 {[%clk 0:02:37.8]} 17...
f5 {[%clk 0:02:54.8]} 18. Bh5 {[%clk 0:02:37.8]} 18... f6 {[%clk 0:02:37.2]} 19.
Bf7 {[%clk 0:02:38.5]} 19... e5 {[%clk 0:02:36.4]} 20. Be6 {[%clk 0:02:39.3]}
20... Bd6 {[%clk 0:02:29.6]} 21. Bxf5 {[%clk 0:02:40.4]} 21... h6 {[%clk
0:02:28.8]} 22. Ke2 {[%clk 0:02:37.5]} 22... Rd8 {[%clk 0:02:29.2]} 23. Rd3
{[%clk 0:02:28.1]} 23... Bb4 {[%clk 0:02:25.9]} 24. Rxd8 {[%clk 0:02:24.3]}
24... Kxd8 {[%clk 0:02:27.8]} 25. Kf3 {[%clk 0:02:26.2]} 25... Ke7 {[%clk
0:02:22.5]} 26. c3 {[%clk 0:02:27.5]} 26... Bc5 {[%clk 0:02:23.4]} 27. Bc8
{[%clk 0:02:25.8]} 27... b6 {[%clk 0:02:24.3]} 28. Bb7 {[%clk 0:02:27.3]} 28...
Kd6 {[%clk 0:02:25.5]} 29. g4 {[%clk 0:02:28.5]} 29... a5 {[%clk 0:02:23.7]} 30.
Ke2 {[%clk 0:02:20.7]} 30... b5 {[%clk 0:02:17.6]} 31. f3 {[%clk 0:02:22]} 31...
a4 {[%clk 0:02:17.4]} 32. Kd3 {[%clk 0:02:20.3]} 32... Kd5 {[%clk 0:02:16.4]}
33. b3 {[%clk 0:02:21.5]} 33... axb3 {[%clk 0:02:17.2]} 34. axb3 {[%clk
0:02:22.7]} 34... Bg1 {[%clk 0:02:18.9]} 35. h3 {[%clk 0:02:21.7]} 35... Bf2
{[%clk 0:02:18.9]} 36. Ba8 {[%clk 0:02:22.4]} 36... Be1 {[%clk 0:02:19.4]} 37.
Bb7 {[%clk 0:02:23.4]} 37... Bg3 {[%clk 0:02:18.3]} 38. Bc8 {[%clk 0:02:24.4]}
38... Be1 {[%clk 0:02:15.9]} 39. Bf5 {[%clk 0:02:25.3]} 39... Bf2 {[%clk
0:02:13.6]} 40. Bg6 {[%clk 0:02:24.2]} 40... Be1 {[%clk 0:02:14.1]} 41. Bf7+
{[%clk 0:02:25.5]} 41... Kd6 {[%clk 0:02:14.3]} 42. c4 {[%clk 0:02:25.8]} 42...
bxc4+ {[%clk 0:02:14.9]} 43. Bxc4 {[%clk 0:02:25.9]} 43... c5 {[%clk 0:02:07.3]}
44. Ke4 {[%clk 0:02:27.8]} 44... Ke7 {[%clk 0:02:07.9]} 45. Kf5 {[%clk
0:02:28.7]} 45... Bd2 {[%clk 0:02:08.8]} 46. Kg6 {[%clk 0:02:29.4]} 46... Bc1
{[%clk 0:02:09.6]} 47. h4 {[%clk 0:02:30.7]} 47... Bd2 {[%clk 0:02:10.7]} 48.
Bd5 {[%clk 0:02:31.8]} 48... Be1 {[%clk 0:02:09.3]} 49. Kh5 {[%clk 0:02:29.4]}
49... Kf8 {[%clk 0:02:05.7]} 50. Be4 {[%clk 0:02:22.3]} 50... Kg7 {[%clk
0:02:06.3]} 51. Bf5 {[%clk 0:02:23]} 51... Bf2 {[%clk 0:02:06.8]} 52. Be4 {[%clk
0:02:24.5]} 52... Be1 {[%clk 0:02:08]} 53. Bf5 {[%clk 0:02:25.8]} 53... Bf2
{[%clk 0:02:09.2]} 54. Be4 {[%clk 0:02:27.3]} 54... Be1 {[%clk 0:02:10.4]}
1/2-1/2

[Event "*** Titled Tuesday Blitz"]
[Site "Chess.com"]
[Date "2019.06.04"]
[Round "3"]
[White "Berardino"]
[Black "Grandelicious"]
[Result "0-1"]
[WhiteElo "2553"]
[BlackElo "2748"]
[TimeControl "180+2"]
[EndTime "13:34:20 PDT"]
[Termination "Grandelicious won by checkmate"]

1. e4 {[%clk 0:03:01.9]} 1... c5 {[%clk 0:02:58.3]} 2. Nf3 {[%clk 0:03:03]} 2...
Nc6 {[%clk 0:02:59.2]} 3. d4 {[%clk 0:03:01]} 3... cxd4 {[%clk 0:03:00]} 4. Nxd4
{[%clk 0:03:02.9]} 4... Nf6 {[%clk 0:03:01.7]} 5. Nc3 {[%clk 0:03:04.1]} 5... d6
{[%clk 0:03:03.3]} 6. Bc4 {[%clk 0:02:56.3]} 6... Qb6 {[%clk 0:03:03.1]} 7. Nde2
{[%clk 0:02:57.1]} 7... e6 {[%clk 0:03:00]} 8. Bb3 {[%clk 0:02:57.4]} 8... a6
{[%clk 0:02:57.6]} 9. O-O {[%clk 0:02:58.2]} 9... Be7 {[%clk 0:02:58.3]} 10. Bg5
{[%clk 0:02:56.1]} 10... Qc7 {[%clk 0:02:57.7]} 11. f4 {[%clk 0:02:48.7]} 11...
h6 {[%clk 0:02:43.3]} 12. Bxf6 {[%clk 0:02:12.1]} 12... Bxf6 {[%clk 0:02:45.2]}
13. Kh1 {[%clk 0:02:12.7]} 13... h5 {[%clk 0:02:26.3]} 14. f5 {[%clk 0:02:01.5]}
14... Be5 {[%clk 0:02:08.3]} 15. Nf4 {[%clk 0:01:57.5]} 15... exf5 {[%clk
0:01:59.4]} 16. exf5 {[%clk 0:01:18.7]} 16... Qd8 {[%clk 0:01:45.3]} 17. f6
{[%clk 0:00:49.6]} 17... gxf6 {[%clk 0:01:23.3]} 18. Nxh5 {[%clk 0:00:30.3]}
18... f5 {[%clk 0:01:22.4]} 19. g3 {[%clk 0:00:27.3]} 19... Qg5 {[%clk
0:01:20.4]} 20. Nf4 {[%clk 0:00:24.7]} 20... Qxg3 {[%clk 0:01:18.5]} 21. Qe1
{[%clk 0:00:21.6]} 21... Qxh2# {[%clk 0:01:19]} 0-1

[Event "*** Titled Tuesday Blitz"]
[Site "Chess.com"]
[Date "2019.06.04"]
[Round "3"]
[White "pedro_gines"]
[Black "MagnutssCarleson"]
[Result "0-1"]
[WhiteElo "2391"]
[BlackElo "2292"]
[TimeControl "180+2"]
[EndTime "13:34:36 PDT"]
[Termination "MagnutssCarleson won on time"]

1. Nf3 {[%clk 0:03:01.9]} 1... Nf6 {[%clk 0:03:00.2]} 2. d4 {[%clk 0:03:01.8]}
2... d5 {[%clk 0:02:57.5]} 3. c4 {[%clk 0:03:02]} 3... c6 {[%clk 0:02:57.2]} 4.
e3 {[%clk 0:02:57.8]} 4... e6 {[%clk 0:02:58.2]} 5. b3 {[%clk 0:02:55.2]} 5...
Bd6 {[%clk 0:02:52.4]} 6. Bb2 {[%clk 0:02:55.7]} 6... Nbd7 {[%clk 0:02:52.4]} 7.
Nbd2 {[%clk 0:02:57]} 7... O-O {[%clk 0:02:53.2]} 8. Bd3 {[%clk 0:02:58.5]} 8...
Qe7 {[%clk 0:02:52.7]} 9. Ne5 {[%clk 0:02:59.3]} 9... Ba3 {[%clk 0:02:42.9]} 10.
Bxa3 {[%clk 0:02:29.9]} 10... Qxa3 {[%clk 0:02:44.8]} 11. Nxd7 {[%clk
0:02:22.9]} 11... Bxd7 {[%clk 0:02:44.7]} 12. O-O {[%clk 0:02:22]} 12... c5
{[%clk 0:02:28.3]} 13. cxd5 {[%clk 0:02:22.4]} 13... exd5 {[%clk 0:02:19.3]} 14.
dxc5 {[%clk 0:02:21.7]} 14... Qxc5 {[%clk 0:02:19.6]} 15. Qc1 {[%clk 0:02:22.2]}
15... Qd6 {[%clk 0:02:19]} 16. Nf3 {[%clk 0:02:17.5]} 16... Rac8 {[%clk
0:02:15.2]} 17. Qb2 {[%clk 0:02:18.4]} 17... Rfe8 {[%clk 0:02:15.8]} 18. Rac1
{[%clk 0:02:14.2]} 18... g6 {[%clk 0:02:03.9]} 19. Qd4 {[%clk 0:02:08.5]} 19...
b6 {[%clk 0:02:03.2]} 20. Ba6 {[%clk 0:02:04]} 20... Rc5 {[%clk 0:02:00.2]} 21.
b4 {[%clk 0:02:01.4]} 21... Rxc1 {[%clk 0:02:00.1]} 22. Rxc1 {[%clk 0:02:03.3]}
22... Re4 {[%clk 0:01:59.5]} 23. Qc3 {[%clk 0:01:12.3]} 23... Rxb4 {[%clk
0:01:57.1]} 24. Qa3 {[%clk 0:01:13.2]} 24... Ne4 {[%clk 0:01:48.4]} 25. Bb7
{[%clk 0:00:38.2]} 25... Rb1 {[%clk 0:01:41.4]} 0-1

[Event "*** Titled Tuesday Blitz"]
[Site "Chess.com"]
[Date "2019.06.04"]
[Round "3"]
[White "ruvat"]
[Black "vinniethepooh"]
[Result "1-0"]
[WhiteElo "2368"]
[BlackElo "2583"]
[TimeControl "180+2"]
[EndTime "13:34:41 PDT"]
[Termination "ruvat won by resignation"]

1. d4 {[%clk 0:03:01.9]} 1... d5 {[%clk 0:02:59.7]} 2. c4 {[%clk 0:03:02.5]}
2... c6 {[%clk 0:03:00.3]} 3. Nf3 {[%clk 0:03:03.3]} 3... Nf6 {[%clk 0:03:01.1]}
4. Qc2 {[%clk 0:03:04.1]} 4... dxc4 {[%clk 0:03:01.1]} 5. Qxc4 {[%clk 0:03:06]}
5... Bf5 {[%clk 0:03:01.6]} 6. g3 {[%clk 0:03:06.7]} 6... e6 {[%clk 0:03:02.2]}
7. Bg2 {[%clk 0:03:07.6]} 7... Be7 {[%clk 0:03:03.8]} 8. O-O {[%clk 0:03:08.4]}
8... O-O {[%clk 0:03:05.3]} 9. Qb3 {[%clk 0:03:09.2]} 9... h6 {[%clk 0:03:02.4]}
10. Qxb7 {[%clk 0:03:08.1]} 10... Be4 {[%clk 0:01:42.3]} 11. Nc3 {[%clk
0:02:58]} 11... Bd5 {[%clk 0:01:23.5]} 12. Qxa8 {[%clk 0:02:23.1]} 12... Qb6
{[%clk 0:01:17.1]} 13. Ne5 {[%clk 0:01:33.2]} 13... Nbd7 {[%clk 0:00:33.3]} 14.
Nxd5 {[%clk 0:01:31.4]} 14... cxd5 {[%clk 0:00:19.2]} 15. Qc6 {[%clk 0:01:31.3]}
15... Qd8 {[%clk 0:00:12.2]} 16. Nxd7 {[%clk 0:01:25.6]} 16... Nxd7 {[%clk
0:00:14.1]} 17. Bf4 {[%clk 0:01:25.3]} 17... Nb6 {[%clk 0:00:14.3]} 18. Bc7
{[%clk 0:01:16.9]} 18... Qc8 {[%clk 0:00:13.9]} 19. Rfc1 {[%clk 0:01:16.4]}
19... Nc4 {[%clk 0:00:14.9]} 20. b3 {[%clk 0:01:14.7]} 1-0